[Event "14th Danzhou Super GM 2023"]
[Site "Danzhou"]
[Date "2023.11.17"]
[Round "4.4"]
[White "Bai, Jinshi"]
[Black "Ma, Qun"]
[Result "1-0"]
[ECO "D11"]
[WhiteElo "2585"]
[BlackElo "2653"]
[Annotator "TA"]
[PlyCount "63"]
[EventDate "2023.11.17"]
[EventCountry "CHN"]
[SourceTitle "playchess.com"]
[Source "ChessBase"]
[SourceQuality "1"]
[TimeControl "2700+10"]

{[%evp 9,63,0,2,8,10,-32,16,14,18,24,22,28,19,24,54,5,10,0,27,8,8,14,17,17,26,18,89,71,159,158,166,170,158,166,165,149,170,164,215,237,243,243,258,266,266,259,266,259,252,252,796,796,1135,1040,29981,29982]} 1. d4 {[%emt 0:00:06]} d5 {[%emt 0:00:10]} 2. Nf3 {[%emt 0:00:21]} Nf6 {[%emt 0:00:06]} 3. g3 {[%emt 0:00:27]} c6 {[%emt 0:02:52]} 4. c4 {[%emt 0:01:38]} dxc4 {[%emt 0:00:52]} 5. Bg2 {[%emt 0:01:08]} b5 {[%emt 0:00:01]} 6. a4 {[%emt 0:03:56] Black must now prevent axb5. D11: Slav Defence: 3 Nf3 sidelines and 3...Nf6 4 e3 Bg4.} Bb7 {[%emt 0:00:13]} 7. b3 {[%emt 0:00:05]} (7. Ne5 $5 {[%cal Ra4b5]} Qc8 8. O-O $11) 7... cxb3 {[%emt 0:00:58]} (7... b4 $1 $15 8. bxc4 c5) 8. Qxb3 $11 {[%emt 0:00:12] aiming for Ne5. The position is equal.} a6 {[%emt 0:06:07]} 9. Ba3 {[%emt 0:00:11]} e6 {[%emt 0:05:54][%cal Ob5b4]} 10. Bxf8 {[%emt 0:00:06]} Kxf8 {[%emt 0:00:09]} 11. O-O {[%emt 0:00:05]} Nbd7 {[%emt 0:02:45]} 12. Nc3 {[%emt 0:03:38]} (12. Nbd2 $14) 12... g6 {[%emt 0:00:03] [#]} 13. Ne5 $5 $146 {[%emt 0:04:33][%mdl 8] New and interesting.} ({Predecessor:} 13. e4 Kg7 14. e5 Ne8 15. Ne4 Qe7 16. Rfc1 Rd8 17. Qe3 h6 18. Nfd2 Nb6 19. Nc5 {0-1 Schebler,G (2478)-Gustafsson,J (2571) Internet Section 10A g/8'+2" blitz 2004 (5)}) 13... Kg7 {[%emt 0:02:59]} 14. Bxc6 {[%emt 0:04:32]} ({Reject} 14. Nxc6 Qb6 15. axb5 axb5 16. Qxb5 Rhc8 $11) 14... Bxc6 {[%emt 0:00:20]} 15. Nxc6 {[%emt 0:01:33]} bxa4 {[%emt 0:03:00]} 16. Nxa4 {[%emt 0:02:00]} Qc7 {[%emt 0:00:03]} 17. Rfc1 {[%emt 0:00:31][%cal Oe2e4]} Rhc8 {[%emt 0:00:49] [#]} (17... Qd6 $11) 18. Qa3 $1 $16 {[%emt 0:00:44] Threatens to win with Ne7.} Qb7 {[%emt 0:04:48]} (18... Re8 $142) 19. Rab1 {[%emt 0:02:15]} Qb5 {[%emt 0:00:01]} 20. Nb6 {[%emt 0:04:35]} Qxe2 {[%emt 0:02:31]} 21. Nxc8 {[%emt 0:01:53]} Rxc8 {[%emt 0:00:06]} 22. Qe3 $36 {[%emt 0:00:09][%mdl 2048] Keeping Black busy.} Qh5 {[%emt 0:02:01]} 23. Ne5 {[%emt 0:00:27]} Rd8 {[%emt 0:01:53]} (23... Nd5 $142 24. Qf3 Rxc1+ 25. Rxc1 Qxf3 26. Nxf3 N7b6) 24. Rb7 $18 {[%emt 0:01:09]} Nxe5 {[%emt 0:04:16]} 25. Qxe5 {[%emt 0:00:02]} Qf3 {[%emt 0:02:57]} 26. Rcc7 {[%emt 0:02:54]} Rf8 {[%emt 0:00:01]} 27. Qxe6 {[%emt 0:00:30][%cal Rc7f7] Active counter play!} Ne4 {[%emt 0:00:41]} 28. Qe5+ {[%emt 0:01:25]} (28. Qxa6 $2 {loses.} Qxf2+ 29. Kh1 Ng5 $19) 28... Kg8 {[%emt 0:00:02]} 29. Qf4 {[%emt 0:01:53]} ({Not} 29. Rb2 Qd1+ 30. Kg2 Nd2 31. Rxd2 Qxd2 $14) 29... Qd1+ {[%emt 0:00:09] [#]} (29... Qxf4 30. gxf4 Nd6) 30. Kg2 {[%emt 0:00:09][%cal Rc7f7]} Nd2 {[%emt 0:00:01]} 31. h4 {[%emt 0:00:20][%cal Rc7f7]} (31. Rxf7 $2 Qf1#) 31... Qf1+ {[%emt 0:01:51]} 32. Kh2 {[%emt 0:00:02] Excellently played by Bai!   Weighted Error Value: White=0.07 (flawless) /Black=0.38} 1-0

[Event "14th Danzhou Super GM 2023"]
[Site "Danzhou"]
[Date "2023.11.19"]
[Round "5.1"]
[White "Ma, Qun"]
[Black "Bu, Xiangzhi"]
[Result "1-0"]
[ECO "C47"]
[WhiteElo "2653"]
[BlackElo "2677"]
[Annotator "TA"]
[PlyCount "101"]
[EventDate "2023.11.17"]
[EventCountry "CHN"]
[SourceTitle "playchess.com"]
[Source "ChessBase"]
[SourceQuality "1"]
[TimeControl "2700+10"]

{[%evp 14,101,0,0,0,-14,5,0,0,0,0,-4,4,0,0,-5,-6,-6,0,-9,-8,-10,-6,-9,-9,-9,-15,-25,-4,-6,-4,-6,45,0,0,0,0,0,0,0,16,11,69,69,70,62,96,98,113,113,113,113,113,113,113,113,113,113,120,117,130,113,113,113,113,69,214,211,196,161,2214,2168,369,1836,29982,29983,29983,29984,29987,29986,29986,29987,29987,29988,29992,29993,29993,29994,29996,29997]} 1. e4 {[%emt 0:00:09]} e5 {[%emt 0:00:07]} 2. Nf3 {[%emt 0:00:03]} Nc6 {[%emt 0:00:02]} 3. Nc3 {[%emt 0:00:04]} Nf6 {[%emt 0:00:11]} 4. d4 {[%emt 0:00:02]} exd4 {[%emt 0:00:12]} 5. Nxd4 {[%emt 0:00:03]} Bb4 {[%emt 0:00:02]} 6. Nxc6 {[%emt 0:00:06]} bxc6 {[%emt 0:00:02]} 7. Bd3 {[%emt 0:00:07]} d5 {[%emt 0:00:02]} 8. exd5 {[%emt 0:00:21]} O-O {[%emt 0:00:02] C47: Scotch Four Knights and Four Knights with 4 g3.} ({Don't take} 8... Nxd5 9. O-O $14) 9. O-O {[%emt 0:00:05]} Bg4 {[%emt 0:00:28]} 10. Be2 {[%emt 0:05:14]} Bxe2 {[%emt 0:00:58] The position is equal.} 11. Nxe2 {[%emt 0:00:09]} cxd5 {[%emt 0:00:22]} 12. Bg5 {[%emt 0:00:14]} Re8 {[%emt 0:15:19]} 13. Ng3 {[%emt 0:05:33]} Re5 {[%emt 0:02:24]} 14. Bf4 {[%emt 0:02:37]} Re6 {[%emt 0:00:03] [#]} 15. Qd3 $146 {[%emt 0:02:08]} ({Predecessor:} 15. Bg5 h6 16. Bxf6 Rxf6 17. Qd3 c6 18. c4 Rb8 19. cxd5 Qxd5 20. Qc2 Rf4 21. b3 {½-½ Lugovskoy,M (2428)-Rakhmanov,A (2634) Khanty-Mansiysk Governor Cup 14th 2018 (8)}) 15... Bd6 {[%emt 0:01:50]} 16. Bxd6 {[%emt 0:00:56]} Qxd6 {[%emt 0:00:05]} 17. c4 {[%emt 0:03:00]} Qa6 {[%emt 0:04:43]} 18. Rfc1 {[%emt 0:00:02]} Rae8 {[%emt 0:00:03]} 19. h3 {[%emt 0:01:45]} c5 {[%emt 0:08:44]} 20. b3 {[%emt 0:03:21]} d4 {[%emt 0:00:25]} 21. b4 {[%emt 0:01:48][%mdl 64] [#] Deflection} cxb4 {[%emt 0:06:44]} 22. Qxd4 {[%emt 0:00:05]} Rd6 {[%emt 0:05:01]} (22... g6 $11) 23. Qf4 {[%emt 0:03:26]} Rde6 {[%emt 0:00:10]} 24. c5 {[%emt 0:01:01]} Ne4 {[%emt 0:00:14]} 25. Nxe4 {[%emt 0:08:28]} Rxe4 {[%emt 0:00:01]} 26. Qd2 {[%emt 0:00:03]} Qc6 {[%emt 0:00:12]} (26... Qf6 $5 {[%cal Re4e2]}) 27. a3 {[%emt 0:00:01]} a5 {[%emt 0:00:55]} ({Black should try} 27... Qf6 $11 28. Qd6 R4e6) 28. axb4 $14 {[%emt 0:00:01]} axb4 {[%emt 0:00:01]} 29. Rab1 $1 {[%emt 0:02:21]} h6 {[%emt 0:00:19]} 30. Rxb4 {[%emt 0:00:29]} Rxb4 {[%emt 0:00:10]} 31. Qxb4 $16 {[%emt 0:00:01][%mdl 4096] Endgame KQR-KQR} Rc8 {[%emt 0:00:04]} 32. Qc4 {[%emt 0:00:25]} Rc7 {[%emt 0:00:14]} 33. h4 {[%emt 0:00:17]} h5 {[%emt 0:00:02]} 34. Qe2 {[%emt 0:00:53]} g6 {[%emt 0:00:13]} 35. Qe5 {[%emt 0:01:14]} Kh7 {[%emt 0:00:05]} 36. Rc3 {[%emt 0:00:29]} Rc8 {[%emt 0:00:03]} 37. Rf3 {[%emt 0:00:18]} Kg8 {[%emt 0:00:01]} 38. Rd3 {[%emt 0:01:00]} Kh7 {[%emt 0:00:08]} 39. Rd5 {[%emt 0:01:07] Qd4 would be deadly. White is more active.} Qe6 {[%emt 0:00:38] This costs Black the game.} ({Black should play} 39... Re8 $14 40. Qd4 Re1+ 41. Kh2 Qc7+ 42. Rd6 Rc1) 40. Qd4 $18 {[%emt 0:01:05]} Re8 {[%emt 0:00:05]} 41. Rd7 $36 {[%emt 0:00:25][%cal Oc5c6][%mdl 2048] [#] And now c6! would win. White is really pushing.} Qf5 $2 {[%emt 0:00:06]} (41... Kg8 42. Rd8 Rxd8 43. Qxd8+ Kg7) 42. c6 {[%emt 0:00:28][%cal Bc5c6,Bc6c7][%mdl 32] Black must now prevent c7.} Re1+ {[%emt 0:00:26]} 43. Kh2 {[%emt 0:00:01]} g5 {[%emt 0:00:04]} 44. c7 {[%emt 0:00:30] White mates.} Rc1 {[%emt 0:00:04]} 45. hxg5 {[%emt 0:00:11][%cal Bh4g5,Bg5f6,Bf6f7][%mdl 32]} Rc2 {[%emt 0:00:09]} 46. Rd8 {[%emt 0:00:25]} f6 {[%emt 0:00:01]} 47. Rd7+ {[%emt 0:00:14]} Kg6 {[%emt 0:00:02]} 48. gxf6 {[%emt 0:00:11]} h4 {[%emt 0:00:11]} 49. Rg7+ {[%emt 0:00:10]} Kh5 {[%emt 0:00:01]} 50. f7 {[%emt 0:00:04]} Kh6 {[%emt 0:00:16]} 51. Rg8 {[%emt 0:00:10] Weighted Error Value: White=0.04 (flawless) /Black=0.21 (precise)} (51. Qxh4+ $2 {is the wrong capture.} Kxg7 52. Qe7 Qh5+ 53. Kg3 Qxf7 54. Qxf7+ Kxf7 $19) 1-0

[Event "14th Danzhou Super GM 2023"]
[Site "Danzhou"]
[Date "2023.11.19"]
[Round "5.2"]
[White "Tan, Zhongyi"]
[Black "Bai, Jinshi"]
[Result "1/2-1/2"]
[ECO "C47"]
[WhiteElo "2513"]
[BlackElo "2585"]
[Annotator "RC"]
[PlyCount "72"]
[EventDate "2023.11.17"]
[EventCountry "CHN"]
[SourceTitle "playchess.com"]
[Source "ChessBase"]
[SourceQuality "1"]
[TimeControl "2700+10"]

1. e4 {[%emt 0:00:03]} e5 {[%emt 0:00:34]} 2. Nf3 {[%emt 0:00:03]} Nc6 {[%emt 0:00:03]} 3. Nc3 {[%emt 0:00:04]} Nf6 {[%emt 0:00:07]} 4. d4 {[%emt 0:00:02]} exd4 {[%emt 0:00:17]} 5. Nxd4 {[%emt 0:00:03]} Bb4 {[%emt 0:00:02]} 6. Nxc6 {[%emt 0:00:05]} bxc6 {[%emt 0:00:03]} 7. Bd3 {[%emt 0:00:04]} d5 {[%emt 0:00:12]} 8. exd5 {[%emt 0:00:09]} O-O {[%emt 0:00:14]} 9. O-O {[%emt 0:00:05]} Bg4 {[%emt 0:00:20]} 10. f3 {[%emt 0:02:00]} Bh5 {[%emt 0:00:02]} 11. dxc6 {[%emt 0:00:33]} Qd4+ {[%emt 0:00:04]} 12. Kh1 {[%emt 0:00:10]} Bxc3 {[%emt 0:00:02]} 13. bxc3 {[%emt 0:00:16]} Qxc3 {[%emt 0:00:02]} 14. Rb1 {[%emt 0:06:21]} Bg6 {[%emt 0:00:54]} 15. Rb3 {[%emt 0:04:59]} Qxc6 {[%emt 0:00:07]} 16. Bb5 {[%emt 0:01:45]} Qxc2 {[%emt 0:08:00]} 17. Qxc2 {[%emt 0:00:09]} Bxc2 {[%emt 0:00:02]} 18. Rc3 {[%emt 0:00:02]} Rab8 {[%emt 0:00:22]} 19. a4 {[%emt 0:06:16]} a6 {[%emt 0:01:04]} 20. Bc6 {[%emt 0:02:07]} Bb3 {[%emt 0:06:13]} 21. Bf4 {[%emt 0:04:58]} Bxa4 {[%emt 0:03:16]} 22. Bxa4 {[%emt 0:05:28]} Rb4 {[%emt 0:00:02]} 23. Bb3 {[%emt 0:00:02]} Rxf4 {[%emt 0:00:03]} 24. Rxc7 {[%emt 0:00:03]} Rb4 {[%emt 0:05:02]} 25. Ba2 {[%emt 0:00:04]} a5 {[%emt 0:06:39]} 26. Ra7 {[%emt 0:01:32]} Ra4 {[%emt 0:01:26]} 27. Bb3 {[%emt 0:00:08]} Rb4 {[%emt 0:00:14]} 28. Ba2 {[%emt 0:00:02]} Ra4 {[%emt 0:02:13]} 29. Bb3 {[%emt 0:00:02]} Ra3 {[%emt 0:01:33]} 30. Rb1 {[%emt 0:00:14]} g5 {[%emt 0:00:40]} 31. h3 {[%emt 0:00:33]} Kg7 {[%emt 0:00:34]} 32. Bc4 {[%emt 0:01:31]} Ra4 {[%emt 0:00:02]} 33. Be6 {[%emt 0:04:52]} Rb4 {[%emt 0:07:33]} 34. Rxb4 {[%emt 0:00:06]} axb4 {[%emt 0:00:01]} 35. Bb3 {[%emt 0:00:02]} h6 {[%emt 0:01:01]} 36. Rb7 {[%emt 0:00:03]} Nh5 {[%emt 0:01:01]} 1/2-1/2

[Event "14th Danzhou Super GM 2023"]
[Site "Danzhou"]
[Date "2023.11.19"]
[Round "5.3"]
[White "Cheparinov, Ivan"]
[Black "Xu, Xiangyu"]
[Result "0-1"]
[ECO "B51"]
[WhiteElo "2649"]
[BlackElo "2623"]
[Annotator "TA"]
[PlyCount "80"]
[EventDate "2023.11.17"]
[EventCountry "CHN"]
[SourceTitle "playchess.com"]
[Source "ChessBase"]
[SourceQuality "1"]
[TimeControl "2700+10"]

{[%evp 10,80,29,22,14,20,14,18,19,27,15,18,30,23,25,19,29,0,0,0,10,4,10,0,0,0,0,-15,0,0,0,-8,-7,-22,-16,-22,0,0,0,0,0,0,0,0,19,-15,-11,-18,0,0,0,-55,-49,-107,-100,-189,-189,-181,-178,-212,-182,-165,-102,-257,-253,-323,-225,-980,-981,-892,-842,-929,-922]} 1. e4 {[%emt 0:00:04]} c5 {[%emt 0:00:03]} 2. Nf3 {[%emt 0:00:01]} d6 {[%emt 0:00:02]} 3. Bb5+ {[%emt 0:00:02]} Nc6 {[%emt 0:00:03][%cal Bb8c6,Bc6e5,Be5f3][%mdl 32]} 4. O-O {[%emt 0:00:06]} Bd7 {[%emt 0:00:03]} 5. Re1 {[%emt 0:00:02]} Nf6 {[%emt 0:00:04]} 6. h3 {[%emt 0:00:35]} e6 {[%emt 0:01:44] B51: Sicilian: Moscow Variation (3 Bb5+) without 3...Bd7.} 7. c3 {[%emt 0:00:37]} Ne5 {[%emt 0:00:03]} 8. Bf1 {[%emt 0:00:15]} Nxf3+ {[%emt 0:02:03] The position is equal.} 9. Qxf3 {[%emt 0:00:02]} Bc6 {[%emt 0:00:02]} 10. d4 {[%emt 0:00:36]} Be7 {[%emt 0:00:03]} 11. dxc5 {[%emt 0:02:14]} dxc5 {[%emt 0:00:03]} 12. Nd2 {[%emt 0:00:44] [#]} b5 $146 {[%emt 0:16:16]} ({Predecessor:} 12... O-O 13. a4 Nxe4 14. Nxe4 f5 15. Bc4 Bxe4 16. Bxe6+ Kh8 17. Qh5 Qd6 18. Bc4 Rf6 {½-½ Perry,D (2503)-Pappier,C (2488) ICCF GMN/A/04 email 2020}) 13. a4 {[%emt 0:04:57]} a6 {[%emt 0:00:20]} 14. Qg3 {[%emt 0:02:42]} O-O {[%emt 0:00:05]} (14... bxa4 15. Qxg7 Rg8 16. Qh6 $16) 15. e5 {[%emt 0:01:00]} Nd7 {[%emt 0:00:28]} 16. Ne4 {[%emt 0:01:30] Bh6 would be deadly.} Kh8 {[%emt 0:00:53]} 17. Bf4 {[%emt 0:07:39]} c4 {[%emt 0:05:58]} 18. Rad1 {[%emt 0:01:25]} Bxe4 {[%emt 0:00:22]} 19. Rxe4 {[%emt 0:00:04]} Qc7 {[%emt 0:00:03]} 20. axb5 {[%emt 0:06:14]} axb5 {[%emt 0:00:02]} 21. Bg5 {[%emt 0:00:01][%cal Bf4g5,Bg5h4,Bh4g3,Bg3d6][%mdl 32]} Nc5 {[%emt 0:01:30]} 22. Red4 {[%emt 0:01:54]} f6 {[%emt 0:00:27]} (22... Ra2 $5 {[%cal Ra2b2]}) 23. Bh4 {[%emt 0:03:18]} Rfe8 {[%emt 0:06:19]} 24. exf6 {[%emt 0:06:36][%csl Gf6][%cal Rg3g7]} Qxg3 {[%emt 0:00:03]} 25. Bxg3 {[%emt 0:00:01]} Bxf6 {[%emt 0:01:26]} 26. Rd6 {[%emt 0:00:01]} Na4 {[%emt 0:01:05] Prevents Rb6} (26... Ne4 $5 {[%cal Re4d6]}) 27. R1d2 {[%emt 0:00:50]} Rad8 {[%emt 0:00:06]} 28. Rc2 {[%emt 0:01:38]} Rxd6 {[%emt 0:04:08]} (28... e5 $5 {[%cal Rd8d6]} 29. Rxd8 Rxd8 $11) 29. Bxd6 {[%emt 0:00:01]} Rd8 {[%emt 0:00:02]} 30. Bf4 {[%emt 0:00:12]} ({White should play} 30. Ba3 $1 $11) 30... Rd1 $1 $15 {[%emt 0:01:13]} 31. g3 {[%emt 0:02:33] [#]} (31. g4 $1 $15) 31... Rb1 $1 $17 {[%emt 0:00:26] Black is more active.} 32. Re2 {[%emt 0:01:36]} (32. Bc1 $17) 32... Kg8 $19 {[%emt 0:02:20]} 33. Rxe6 {[%emt 0:00:17]} Rxb2 {[%emt 0:00:45]} 34. Re8+ {[%emt 0:00:44]} Kf7 {[%emt 0:00:02]} 35. Rb8 {[%emt 0:00:01][%cal Ob8b5] [#]} Kg6 {[%emt 0:00:02]} ({Don't play} 35... Bxc3 36. Rxb5 Nb6 37. Rxb2 Bxb2 38. Be3 $14) (35... Ke6 $1 $19 36. Kg2 Kd5) 36. Bg2 $2 {[%emt 0:00:18] This move loses the game for White.} ({But not} 36. Bc1 $2 Rb1 37. Be3 Nxc3 $19) (36. Kg2 $17) 36... Nxc3 {[%emt 0:00:05] Hoping for ...Ne2+.} ({Less strong is} 36... Bxc3 37. Rf8 Re2 38. Be3 Re1+ 39. Kh2 Rxe3 40. fxe3 $16) 37. Bf3 {[%emt 0:00:07]} Bd4 {[%emt 0:01:31] Against Rb6+} 38. h4 $2 {[%emt 0:00:01]} (38. Kh1) 38... Rxf2 {[%emt 0:00:26] Black is clearly winning.} 39. h5+ {[%emt 0:00:01]} Kf7 {[%emt 0:00:04]} 40. Rb7+ {[%emt 0:00:05]} Kf6 {[%emt 0:00:02] Weighted Error Value: White=0.41/Black=0.08 (flawless)} 0-1

[Event "14th Danzhou Super GM 2023"]
[Site "Danzhou"]
[Date "2023.11.19"]
[Round "5.4"]
[White "Liu, Yan"]
[Black "Jumabayev, Rinat"]
[Result "1-0"]
[ECO "A13"]
[WhiteElo "2579"]
[BlackElo "2588"]
[Annotator "RC"]
[PlyCount "83"]
[EventDate "2023.11.17"]
[EventCountry "CHN"]
[SourceTitle "playchess.com"]
[Source "ChessBase"]
[SourceQuality "1"]
[TimeControl "2700+10"]

1. c4 {[%emt 0:00:07]} Nf6 {[%emt 0:08:30]} 2. g3 {[%emt 0:00:09]} e6 {[%emt 0:00:26]} 3. Bg2 {[%emt 0:00:14]} d5 {[%emt 0:00:04]} 4. Nf3 {[%emt 0:00:28]} d4 {[%emt 0:00:04]} 5. d3 {[%emt 0:00:20]} Bb4+ {[%emt 0:03:38]} 6. Bd2 {[%emt 0:00:07]} Be7 {[%emt 0:00:33]} 7. O-O {[%emt 0:02:22]} O-O {[%emt 0:07:41]} 8. e4 {[%emt 0:01:33]} Nc6 {[%emt 0:04:13]} 9. e5 {[%emt 0:00:21]} Nd7 {[%emt 0:00:01]} 10. Qe2 {[%emt 0:00:30]} a5 {[%emt 0:00:13]} 11. Na3 {[%emt 0:03:25]} Nc5 {[%emt 0:04:20]} 12. Nb5 {[%emt 0:01:26]} Qd7 {[%emt 0:02:31]} 13. h4 {[%emt 0:02:01]} Rd8 {[%emt 0:04:42]} 14. h5 {[%emt 0:01:43]} h6 {[%emt 0:00:03]} 15. Rad1 {[%emt 0:02:51]} Ra6 {[%emt 0:05:19]} 16. g4 {[%emt 0:02:43]} Rf8 {[%emt 0:04:26]} 17. Bf4 {[%emt 0:04:19]} b6 {[%emt 0:00:25]} 18. g5 {[%emt 0:03:29]} hxg5 {[%emt 0:00:03]} 19. Nxg5 {[%emt 0:00:03]} Bb7 {[%emt 0:00:42]} 20. Qg4 {[%emt 0:00:54]} Raa8 {[%emt 0:00:10]} 21. Ne4 {[%emt 0:02:56]} Kh8 {[%emt 0:00:08]} 22. Rfe1 {[%emt 0:01:18]} Rg8 {[%emt 0:00:11]} 23. Bg3 {[%emt 0:03:00]} Raf8 {[%emt 0:00:06]} 24. Qf4 {[%emt 0:01:04]} Kh7 {[%emt 0:00:22]} 25. Kh2 {[%emt 0:03:05]} Qd8 {[%emt 0:00:15]} 26. Rg1 {[%emt 0:01:20]} Nd7 {[%emt 0:00:04]} 27. Nd2 {[%emt 0:02:08]} Ndxe5 {[%emt 0:00:08]} 28. Nf3 {[%emt 0:02:00]} Nxf3+ {[%emt 0:00:11]} 29. Bxf3 {[%emt 0:00:05]} f5 {[%emt 0:00:14]} 30. Qxc7 {[%emt 0:00:31]} Qxc7 {[%emt 0:00:14]} 31. Bxc7 {[%emt 0:00:02]} Bc5 {[%emt 0:00:01]} 32. Rde1 {[%emt 0:00:40]} Rf6 {[%emt 0:00:01]} 33. Rg6 {[%emt 0:00:38]} e5 {[%emt 0:00:10]} 34. Bd5 {[%emt 0:00:47]} Re8 {[%emt 0:00:26]} 35. Reg1 {[%emt 0:00:52]} Rxg6 {[%emt 0:00:11]} 36. hxg6+ {[%emt 0:00:24]} Kh6 {[%emt 0:00:01]} 37. Bf7 {[%emt 0:00:09]} Re7 {[%emt 0:00:13]} 38. f4 {[%emt 0:00:24]} Kh5 {[%emt 0:00:17]} 39. Kh3 {[%emt 0:00:06]} e4 {[%emt 0:00:11]} 40. Rg5+ {[%emt 0:00:22]} Kh6 {[%emt 0:00:01]} 41. Kh4 {[%emt 0:00:02]} Rxf7 {[%emt 0:00:04]} 42. gxf7 {[%emt 0:00:01]} 1-0